[Event "25th Abu Dhabi Master 2018"]
[Site "Abu Dhabi"]
[Date "2018.08.07"]
[Round "1"]
[White "Pantsulaia, Levan"]
[Black "Mansour, Sameer"]
[Result "1-0"]
[ECO "E62"]
[WhiteElo "2587"]
[BlackElo "2275"]
[Annotator "ChessBase"]
[PlyCount "81"]
[EventDate "2018.08.05"]
[EventType "swiss"]
[EventCountry "UAE"]
[SourceTitle "playchess.com"]
[Source "ChessBase"]
[SourceQuality "1"]
[TimeControl "5400+30"]

1. Nf3 {[%emt 0:00:00]} Nf6 {[%emt 0:01:05]} 2. g3 {[%emt 0:00:00]} g6 {[%emt 0:00:37]} 3. Bg2 {[%emt 0:00:14]} Bg7 {[%emt 0:00:16]} 4. c4 {[%emt 0:00:06]} O-O {[%emt 0:00:10]} 5. d4 {[%emt 0:00:28]} d6 {[%emt 0:00:58]} 6. Nc3 {[%emt 0:00:14]} c6 {[%emt 0:06:39]} 7. O-O {[%emt 0:00:10]} Qa5 {[%emt 0:00:22]} 8. Nd2 {[%emt 0:00:22]} Qh5 {[%emt 0:10:34]} 9. e4 {[%emt 0:00:11]} c5 {[%emt 0:05:17]} 10. Qxh5 {[%emt 0:07:29]} Nxh5 {[%emt 0:05:29]} 11. dxc5 {[%emt 0:00:08]} Bxc3 {[%emt 0:01:33]} 12. bxc3 {[%emt 0:00:11]} dxc5 {[%emt 0:01:05]} 13. Nb3 {[%emt 0:01:48]} Na6 {[%emt 0:14:23]} 14. e5 {[%emt 0:00:29]} Rb8 {[%emt 0:01:20]} 15. Na5 {[%emt 0:04:39]} b6 {[%emt 0:12:45]} 16. Nc6 {[%emt 0:00:08]} Rb7 {[%emt 0:00:05]} 17. Bg5 {[%emt 0:08:17]} Re8 {[%emt 0:05:46]} 18. a4 {[%emt 0:04:15]} Be6 {[%emt 0:07:02]} 19. Nd8 {[%emt 0:02:41]} Rc7 {[%emt 0:03:45]} 20. Nxe6 {[%emt 0:00:08]} fxe6 {[%emt 0:00:08]} 21. a5 {[%emt 0:00:46]} Nb8 {[%emt 0:00:18]} 22. axb6 {[%emt 0:03:10]} axb6 {[%emt 0:00:06]} 23. Ra8 {[%emt 0:01:55]} Ng7 {[%emt 0:00:15]} 24. Rb1 {[%emt 0:08:34]} Kf7 {[%emt 0:02:00]} 25. f4 {[%emt 0:07:50]} Nd7 {[%emt 0:00:34]} 26. g4 {[%emt 0:00:22]} Rxa8 {[%emt 0:01:35]} 27. Bxa8 {[%emt 0:00:07]} Ne8 {[%emt 0:00:40]} 28. Bh6 {[%emt 0:02:54]} Rc8 {[%emt 0:05:22]} 29. Be4 {[%emt 0:01:49]} Nc7 {[%emt 0:03:07]} 30. Bc6 {[%emt 0:09:18]} Nb8 {[%emt 0:01:16]} 31. Bb7 {[%emt 0:00:15]} Rd8 {[%emt 0:00:14]} 32. Rxb6 {[%emt 0:00:04]} Rd1+ {[%emt 0:01:19]} 33. Kf2 {[%emt 0:00:14]} Rd2+ {[%emt 0:01:20]} 34. Kg3 {[%emt 0:00:25]} Rd3+ {[%emt 0:03:25]} 35. Kh4 {[%emt 0:00:24]} Nd7 {[%emt 0:01:07]} 36. Rc6 {[%emt 0:00:29]} Ne8 {[%emt 0:02:48]} 37. Bc8 {[%emt 0:01:18]} g5+ {[%emt 0:01:10]} 38. Kxg5 {[%emt 0:01:24]} Nef6 {[%emt 0:01:45]} 39. exf6 {[%emt 0:00:41]} exf6+ {[%emt 0:00:08]} 40. Kh4 {[%emt 0:00:05]} Kg6 {[%emt 0:01:27]} 41. Bxd7 {[%emt 0:00:17]} 1-0

[Event "25th Abu Dhabi Master 2018"]
[Site "Abu Dhabi"]
[Date "2018.08.07"]
[Round "1"]
[White "Fier, Alexandr"]
[Black "Alinasab, Mobina"]
[Result "1-0"]
[ECO "C06"]
[WhiteElo "2561"]
[BlackElo "2259"]
[Annotator "ChessBase"]
[PlyCount "179"]
[EventDate "2018.08.05"]
[EventType "swiss"]
[EventCountry "UAE"]
[SourceTitle "playchess.com"]
[Source "ChessBase"]
[SourceQuality "1"]
[TimeControl "5400+30"]

1. e4 {[%emt 0:00:00]} e6 {[%emt 0:00:00]} 2. d4 {[%emt 0:00:00]} d5 {[%emt 0:00:00]} 3. Nd2 {[%emt 0:00:00]} Nf6 {[%emt 0:00:00]} 4. e5 {[%emt 0:00:00]} Nfd7 {[%emt 0:00:00]} 5. Bd3 {[%emt 0:00:00]} c5 {[%emt 0:00:00]} 6. c3 {[%emt 0:00:00]} Nc6 {[%emt 0:00:00]} 7. Ne2 {[%emt 0:00:00]} cxd4 {[%emt 0:00:02]} 8. cxd4 {[%emt 0:00:06]} f6 {[%emt 0:00:03]} 9. exf6 {[%emt 0:00:06]} Nxf6 {[%emt 0:00:04]} 10. Nf3 {[%emt 0:00:12]} Bd6 {[%emt 0:00:05]} 11. O-O {[%emt 0:00:04]} O-O {[%emt 0:00:04]} 12. Bf4 {[%emt 0:00:03]} Bxf4 13. Nxf4 {[%emt 0:00:05]} Ng4 {[%emt 0:00:06]} 14. Qd2 {[%emt 0:05:33]} Qf6 {[%emt 0:00:08]} 15. Nh5 {[%emt 0:00:07]} Qh6 {[%emt 0:00:05]} 16. Qxh6 {[%emt 0:00:03]} Nxh6 {[%emt 0:00:06]} 17. Rac1 {[%emt 0:05:02]} Bd7 {[%emt 0:00:52]} 18. Rfe1 {[%emt 0:06:09]} g6 {[%emt 0:06:59]} 19. Ng3 {[%emt 0:00:06]} Nf7 {[%emt 0:15:00]} 20. Nf1 {[%emt 0:09:08]} Rac8 {[%emt 0:01:07]} 21. Bb5 {[%emt 0:04:36]} Rfe8 {[%emt 0:00:53]} 22. Ne3 {[%emt 0:01:00]} Nb8 {[%emt 0:08:27]} 23. Bd3 {[%emt 0:01:55]} Rxc1 {[%emt 0:02:59]} 24. Rxc1 {[%emt 0:00:03]} Nc6 {[%emt 0:03:09]} 25. Ng4 {[%emt 0:04:11]} Kg7 {[%emt 0:01:16]} 26. Bb5 {[%emt 0:00:08]} Rc8 {[%emt 0:03:57]} 27. Bxc6 {[%emt 0:00:04]} Rxc6 {[%emt 0:00:21]} 28. Rxc6 {[%emt 0:00:04]} Bxc6 {[%emt 0:00:06]} 29. Nge5 {[%emt 0:00:04]} Nd8 {[%emt 0:00:12]} 30. Kf1 {[%emt 0:03:02]} Bb5+ {[%emt 0:00:58]} 31. Ke1 {[%emt 0:00:04]} b6 {[%emt 0:00:10]} 32. Kd2 {[%emt 0:00:36]} Kf6 {[%emt 0:01:13]} 33. h4 {[%emt 0:02:37]} Nb7 {[%emt 0:03:56]} 34. Ng5 {[%emt 0:01:00]} h5 {[%emt 0:02:30]} 35. f3 {[%emt 0:01:46]} Nd6 {[%emt 0:00:26]} 36. g4 {[%emt 0:00:03]} Nc4+ {[%emt 0:06:24]} 37. Nxc4 {[%emt 0:00:06]} Bxc4 {[%emt 0:00:02]} 38. b3 {[%emt 0:01:02]} Bb5 {[%emt 0:00:34]} 39. Ke3 {[%emt 0:00:22]} e5 {[%emt 0:03:04]} 40. Nh3 {[%emt 0:10:07]} Bd7 {[%emt 0:09:12]} 41. Nf2 {[%emt 0:00:28]} Bb5 {[%emt 0:01:57]} 42. gxh5 {[%emt 0:03:29]} gxh5 {[%emt 0:00:06]} 43. Nh1 {[%emt 0:00:03]} Be8 {[%emt 0:13:23]} 44. Ng3 {[%emt 0:00:05]} Bg6 {[%emt 0:10:08]} 45. b4 {[%emt 0:00:44]} a6 {[%emt 0:07:14]} 46. a3 {[%emt 0:01:53]} Be8 {[%emt 0:01:17]} 47. Ne2 {[%emt 0:04:32]} Kf5 {[%emt 0:01:56]} 48. dxe5 {[%emt 0:00:17]} Kxe5 {[%emt 0:00:02]} 49. Nd4 {[%emt 0:00:03]} Bd7 {[%emt 0:00:23]} 50. f4+ {[%emt 0:00:03]} Kf6 {[%emt 0:00:33]} 51. Kd2 {[%emt 0:00:05]} Kg6 {[%emt 0:00:24]} 52. Kc3 {[%emt 0:00:03]} Ba4 {[%emt 0:01:51]} 53. Kd3 {[%emt 0:02:15]} Kf6 {[%emt 0:00:42]} 54. Ke2 {[%emt 0:00:07]} Bd7 {[%emt 0:00:07]} 55. Kf3 {[%emt 0:00:17]} Bg4+ {[%emt 0:00:20]} 56. Ke3 {[%emt 0:00:31]} Bd7 {[%emt 0:01:15]} 57. Ne2 {[%emt 0:00:04]} Be8 {[%emt 0:01:46]} 58. Ng3 {[%emt 0:00:02]} Ke6 {[%emt 0:00:26]} 59. Kd4 {[%emt 0:00:03]} Bf7 {[%emt 0:00:07]} 60. a4 {[%emt 0:03:56]} Be8 {[%emt 0:00:26]} 61. a5 {[%emt 0:00:11]} bxa5 {[%emt 0:00:24]} 62. bxa5 {[%emt 0:00:03]} Bf7 {[%emt 0:00:25]} 63. Kc5 {[%emt 0:00:04]} Kf6 {[%emt 0:00:33]} 64. Kd4 {[%emt 0:03:04]} Ke6 {[%emt 0:00:01]} 65. Ke3 {[%emt 0:00:26]} Be8 {[%emt 0:01:21]} 66. Ne2 {[%emt 0:00:14]} Bf7 {[%emt 0:00:49]} 67. Nd4+ {[%emt 0:00:12]} Kf6 {[%emt 0:00:23]} 68. Kd3 {[%emt 0:00:08]} Bg6+ {[%emt 0:00:10]} 69. Kc3 {[%emt 0:00:04]} Be4 {[%emt 0:00:52]} 70. Kb4 {[%emt 0:00:04]} Bd3 {[%emt 0:00:37]} 71. Kc5 {[%emt 0:00:18]} Bc4 {[%emt 0:00:17]} 72. Kb6 {[%emt 0:04:51]} Bd3 {[%emt 0:00:14]} 73. Kc6 {[%emt 0:00:02]} Bc4 {[%emt 0:00:08]} 74. Kc5 {[%emt 0:00:03]} Ba2 {[%emt 0:00:22]} 75. Kb4 {[%emt 0:00:29]} Bb1 {[%emt 0:00:12]} 76. Kc3 {[%emt 0:00:09]} Bg6 {[%emt 0:00:29]} 77. Nc6 {[%emt 0:00:19]} Be8 {[%emt 0:01:48]} 78. Nb4 {[%emt 0:00:03]} Bb5 {[%emt 0:00:29]} 79. Nxd5+ {[%emt 0:00:07]} Kf5 {[%emt 0:00:08]} 80. Kd4 {[%emt 0:00:01]} Bd7 {[%emt 0:00:53]} 81. Ke3 {[%emt 0:00:23]} Be6 {[%emt 0:00:23]} 82. Nb4 {[%emt 0:00:38]} Bc4 {[%emt 0:00:27]} 83. Nc6 {[%emt 0:00:38]} Bf7 {[%emt 0:00:36]} 84. Nb4 {[%emt 0:00:38]} Kg4 {[%emt 0:00:33]} 85. Nxa6 {[%emt 0:00:16]} Kxh4 {[%emt 0:00:06]} 86. Nc7 {[%emt 0:00:05]} Bc4 {[%emt 0:00:52]} 87. a6 {[%emt 0:00:03]} Bxa6 {[%emt 0:00:07]} 88. Nxa6 {[%emt 0:00:04]} Kg3 {[%emt 0:00:17]} 89. Nc5 {[%emt 0:00:19]} h4 {[%emt 0:00:18]} 90. Ne4+ {[%emt 0:00:03]} 1-0

[Event "25th Abu Dhabi Master 2018"]
[Site "Abu Dhabi"]
[Date "2018.08.07"]
[Round "1"]
[White "Debashis, Das"]
[Black "Rayes, Abdul Kader"]
[Result "1-0"]
[ECO "D46"]
[WhiteElo "2539"]
[BlackElo "2242"]
[Annotator "ChessBase"]
[PlyCount "128"]
[EventDate "2018.08.05"]
[EventType "swiss"]
[EventCountry "UAE"]
[SourceTitle "playchess.com"]
[Source "ChessBase"]
[SourceQuality "1"]
[TimeControl "5400+30"]

1. d4 {[%emt 0:00:40]} e6 {[%emt 0:00:32]} 2. c4 {[%emt 0:00:08]} d5 {[%emt 0:00:03]} 3. Nc3 {[%emt 0:00:13]} c6 {[%emt 0:00:14]} 4. e3 {[%emt 0:00:23]} Nf6 {[%emt 0:00:26]} 5. Nf3 {[%emt 0:00:08]} Nbd7 {[%emt 0:00:12]} 6. Bd3 {[%emt 0:00:40]} b6 {[%emt 0:03:40]} 7. O-O {[%emt 0:00:08]} Bb7 {[%emt 0:00:06]} 8. b3 {[%emt 0:00:10]} Be7 {[%emt 0:02:12]} 9. Bb2 {[%emt 0:00:07]} O-O {[%emt 0:00:26]} 10. Qe2 {[%emt 0:00:10]} Re8 {[%emt 0:02:37]} 11. Rfd1 {[%emt 0:03:19]} Rc8 {[%emt 0:03:17]} 12. e4 {[%emt 0:13:51]} dxe4 {[%emt 0:06:30]} 13. Nxe4 {[%emt 0:00:57]} Qc7 {[%emt 0:00:56]} 14. Nxf6+ {[%emt 0:18:14]} Bxf6 {[%emt 0:19:28]} 15. c5 {[%emt 0:14:18]} g6 {[%emt 0:14:38]} 16. b4 {[%emt 0:18:41]} Bg7 {[%emt 0:14:43]} 17. Bc4 {[%emt 0:05:24]} Rcd8 {[%emt 0:07:34]} 18. a3 {[%emt 0:01:08]} a5 {[%emt 0:03:28]} 19. Rac1 {[%emt 0:00:58]} b5 {[%emt 0:01:14]} 20. Bb3 {[%emt 0:00:31]} Nf6 {[%emt 0:00:56]} 21. Rc2 {[%emt 0:07:29]} Nd5 {[%emt 0:01:49]} 22. Qe1 {[%emt 0:00:06]} a4 {[%emt 0:04:24]} 23. Ba2 {[%emt 0:00:07]} f6 {[%emt 0:01:26]} 24. Re2 {[%emt 0:00:16]} Bc8 {[%emt 0:01:31]} 25. Nd2 {[%emt 0:02:40]} Qf7 {[%emt 0:00:57]} 26. Ne4 {[%emt 0:00:39]} Bf8 {[%emt 0:00:33]} 27. g3 {[%emt 0:01:48]} Be7 {[%emt 0:05:02]} 28. Rd3 {[%emt 0:00:57]} f5 {[%emt 0:00:53]} 29. Nd2 {[%emt 0:01:24]} Bf6 {[%emt 0:00:59]} 30. Nf3 {[%emt 0:00:15]} Qc7 {[%emt 0:03:02]} 31. Bc1 {[%emt 0:00:26]} Re7 {[%emt 0:01:07]} 32. Bh6 {[%emt 0:02:47]} Rde8 {[%emt 0:00:29]} 33. Qd2 {[%emt 0:00:46]} Bd7 {[%emt 0:00:29]} 34. Bg5 {[%emt 0:00:25]} Bxg5 {[%emt 0:00:25]} 35. Qxg5 {[%emt 0:00:08]} Bc8 {[%emt 0:00:39]} 36. h4 {[%emt 0:01:59]} Qd8 {[%emt 0:00:27]} 37. Ne5 {[%emt 0:00:50]} Bb7 {[%emt 0:00:06]} 38. Nf3 {[%emt 0:01:52]} Rd7 {[%emt 0:00:47]} 39. Qc1 {[%emt 0:02:12]} Qf6 {[%emt 0:00:18]} 40. Ne5 {[%emt 0:00:05]} Rdd8 {[%emt 0:00:35]} 41. Rd1 {[%emt 0:00:29]} Kg7 {[%emt 0:00:38]} 42. Rde1 {[%emt 0:00:44]} Re7 {[%emt 0:00:21]} 43. Nf3 {[%emt 0:00:20]} Bc8 {[%emt 0:00:15]} 44. Re5 {[%emt 0:00:34]} Nc7 {[%emt 0:00:17]} 45. Qf4 {[%emt 0:00:11]} h6 {[%emt 0:00:47]} 46. R5e2 {[%emt 0:02:25]} Bb7 {[%emt 0:00:31]} 47. Kg2 {[%emt 0:00:29]} Nd5 {[%emt 0:00:23]} 48. Bxd5 {[%emt 0:00:17]} Rxd5 {[%emt 0:00:01]} 49. Re5 {[%emt 0:00:33]} Rd8 {[%emt 0:00:33]} 50. Qe3 {[%emt 0:00:12]} Bc8 {[%emt 0:00:20]} 51. Re2 {[%emt 0:00:16]} Ree8 {[%emt 0:01:04]} 52. Qd3 {[%emt 0:00:56]} Re7 {[%emt 0:00:39]} 53. Qe3 {[%emt 0:00:36]} Ree8 {[%emt 0:00:38]} 54. Kg1 {[%emt 0:00:07]} Bd7 {[%emt 0:00:13]} 55. Qf4 {[%emt 0:00:39]} Re7 {[%emt 0:00:06]} 56. d5 {[%emt 0:00:22]} cxd5 {[%emt 0:00:29]} 57. Nd4 {[%emt 0:00:01]} Rc8 {[%emt 0:01:32]} 58. Qe3 {[%emt 0:00:52]} Rb8 {[%emt 0:00:32]} 59. Rxd5 {[%emt 0:01:07]} Be8 {[%emt 0:00:29]} 60. Rd6 {[%emt 0:00:16]} g5 {[%emt 0:00:31]} 61. hxg5 {[%emt 0:00:30]} hxg5 {[%emt 0:00:01]} 62. Qf3 {[%emt 0:00:49]} Bf7 {[%emt 0:00:11]} 63. Nxf5+ {[%emt 0:00:41]} Kf8 {[%emt 0:01:13]} 64. Nd4 {[%emt 0:00:09]} Qxf3 {[%emt 0:01:06]} 1-0

[Event "25th Abu Dhabi Master 2018"]
[Site "Abu Dhabi"]
[Date "2018.08.07"]
[Round "1"]
[White "Erigaisi, Arjun"]
[Black "Sharma, Dushyant"]
[Result "1-0"]
[ECO "D35"]
[WhiteElo "2517"]
[BlackElo "2221"]
[Annotator "ChessBase"]
[PlyCount "67"]
[EventDate "2018.08.05"]
[EventType "swiss"]
[EventCountry "UAE"]
[SourceTitle "playchess.com"]
[Source "ChessBase"]
[SourceQuality "1"]
[TimeControl "5400+30"]

1. c4 {[%emt 0:00:06]} e6 {[%emt 0:00:00]} 2. Nc3 {[%emt 0:00:08]} d5 {[%emt 0:03:05]} 3. d4 {[%emt 0:00:12]} Nf6 {[%emt 0:00:54]} 4. cxd5 {[%emt 0:00:08]} exd5 {[%emt 0:00:12]} 5. Bg5 {[%emt 0:00:08]} Be7 {[%emt 0:05:09]} 6. e3 {[%emt 0:00:10]} O-O {[%emt 0:02:37]} 7. Bd3 {[%emt 0:00:09]} c6 {[%emt 0:01:19]} 8. Qc2 {[%emt 0:01:23]} h6 {[%emt 0:01:52]} 9. Bh4 {[%emt 0:00:29]} Be6 {[%emt 0:01:34]} 10. Nge2 {[%emt 0:00:42]} Nbd7 {[%emt 0:03:51]} 11. Nf4 {[%emt 0:01:14]} Rc8 {[%emt 0:19:26]} 12. Rd1 {[%emt 0:01:14]} Re8 {[%emt 0:10:08]} 13. O-O {[%emt 0:01:41]} Bd6 {[%emt 0:04:28]} 14. Nxe6 {[%emt 0:05:02]} fxe6 {[%emt 0:02:40]} 15. e4 {[%emt 0:01:05]} e5 {[%emt 0:08:19]} 16. dxe5 {[%emt 0:01:49]} Bxe5 {[%emt 0:02:53]} 17. exd5 {[%emt 0:01:04]} cxd5 {[%emt 0:03:56]} 18. Bg6 {[%emt 0:13:43]} Rf8 {[%emt 0:17:52]} 19. Qf5 {[%emt 0:17:54]} Bxc3 {[%emt 0:01:59]} 20. bxc3 {[%emt 0:00:18]} Nb6 {[%emt 0:01:45]} 21. Qh3 {[%emt 0:02:34]} Rc6 {[%emt 0:03:50]} 22. Rd3 {[%emt 0:03:07]} Qc7 {[%emt 0:02:02]} 23. Bf5 {[%emt 0:07:42]} Qf7 {[%emt 0:01:00]} 24. Rf3 {[%emt 0:02:41]} Kh8 {[%emt 0:00:33]} 25. Bc2 {[%emt 0:03:50]} Qd7 {[%emt 0:00:33]} 26. Qg3 {[%emt 0:01:31]} Qe8 {[%emt 0:00:30]} 27. Rd1 {[%emt 0:04:47]} d4 {[%emt 0:00:31]} 28. Bxf6 {[%emt 0:00:42]} Rfxf6 {[%emt 0:00:29]} 29. Rxf6 {[%emt 0:00:12]} Rxf6 {[%emt 0:00:30]} 30. Qd3 {[%emt 0:00:13]} Kg8 {[%emt 0:00:30]} 31. Qh7+ {[%emt 0:00:32]} Kf8 {[%emt 0:00:29]} 32. Qh8+ {[%emt 0:00:14]} Kf7 {[%emt 0:00:22]} 33. Bb3+ {[%emt 0:00:07]} Re6 {[%emt 0:00:17]} 34. Qxe8+ {[%emt 0:00:11]} 1-0

[Event "25th Abu Dhabi Master 2018"]
[Site "Abu Dhabi"]
[Date "2018.08.07"]
[Round "1"]
[White "Kuybokarov, Temur"]
[Black "Samant, Aditya S"]
[Result "1-0"]
[ECO "A40"]
[WhiteElo "2499"]
[BlackElo "2217"]
[Annotator "RC"]
[PlyCount "90"]
[EventDate "2018.08.05"]
[EventType "swiss"]
[EventCountry "UAE"]
[SourceTitle "playchess.com"]
[Source "ChessBase"]
[SourceQuality "1"]
[TimeControl "5400+30"]

1. d4 {[%emt 0:00:00]} Nf6 {[%emt 0:00:00]} 2. c4 {[%emt 0:00:00]} e6 {[%emt 0:00:00]} 3. g3 {[%emt 0:00:00]} Bb4+ {[%emt 0:00:49]} 4. Bd2 {[%emt 0:00:00]} a5 {[%emt 0:00:14]} 5. Nf3 {[%emt 0:00:18]} d5 {[%emt 0:00:40]} 6. Qc2 {[%emt 0:00:17]} O-O {[%emt 0:03:52]} 7. Bg2 {[%emt 0:00:17]} c6 {[%emt 0:00:43]} 8. O-O {[%emt 0:00:38]} Nbd7 {[%emt 0:04:05]} 9. Rd1 {[%emt 0:05:06]} Be7 {[%emt 0:04:14]} 10. Bf4 {[%emt 0:02:06]} Ne4 {[%emt 0:04:26]} 11. Ne5 {[%emt 0:06:14]} f5 {[%emt 0:06:23]} 12. f3 {[%emt 0:01:39]} Nxe5 {[%emt 0:03:57]} 13. Bxe5 Nd6 {[%emt 0:02:45]} 14. Bxd6 {[%emt 0:08:16]} Bxd6 {[%emt 0:03:03]} 15. e4 {[%emt 0:03:29]} f4 {[%emt 0:07:16]} 16. e5 {[%emt 0:02:30]} Be7 {[%emt 0:06:44]} 17. g4 {[%emt 0:02:27]} Bh4 {[%emt 0:06:41]} 18. c5 {[%emt 0:06:14]} Qg5 {[%emt 0:03:40]} 19. Nc3 {[%emt 0:02:11]} Bd7 {[%emt 0:01:00]} 20. Rd2 {[%emt 0:00:44]} Be8 {[%emt 0:02:01]} 21. Bf1 {[%emt 0:02:00]} h5 {[%emt 0:06:35]} 22. Bh3 {[%emt 0:01:51]} b6 {[%emt 0:09:04]} 23. cxb6 {[%emt 0:04:42]} c5 {[%emt 0:00:15]} 24. dxc5 {[%emt 0:03:37]} Qxe5 {[%emt 0:00:28]} 25. Kg2 {[%emt 0:02:30]} d4 {[%emt 0:08:22]} 26. Ne2 {[%emt 0:10:04]} Rd8 {[%emt 0:02:13]} 27. Rad1 {[%emt 0:15:24]} d3 {[%emt 0:02:47]} 28. Rxd3 {[%emt 0:00:17]} Bg6 {[%emt 0:00:10]} 29. gxh5 {[%emt 0:00:41]} Bxd3 {[%emt 0:02:27]} 30. Rxd3 {[%emt 0:00:04]} Rxd3 {[%emt 0:05:05]} 31. Qxd3 {[%emt 0:00:05]} Qxc5 {[%emt 0:01:38]} 32. Bxe6+ {[%emt 0:00:05]} Kh8 {[%emt 0:00:03]} 33. b7 {[%emt 0:00:24]} Qf2+ {[%emt 0:04:01]} 34. Kh3 {[%emt 0:00:05]} Be7 {[%emt 0:00:40]} 35. Nc3 {[%emt 0:01:34]} Rd8 {[%emt 0:00:34]} 36. Nd5 {[%emt 0:03:10]} Qh4+ {[%emt 0:00:25]} 37. Kg2 {[%emt 0:00:05]} Qg5+ {[%emt 0:00:21]} 38. Bg4 {[%emt 0:00:49]} Qe5 {[%emt 0:00:22]} 39. b3 {[%emt 0:01:40]} Bd6 {[%emt 0:00:38]} 40. Nb6 {[%emt 0:00:43]} Bc7 {[%emt 0:00:44]} 41. Nd7 {[%emt 0:00:36]} Qb2+ {[%emt 0:00:24]} 42. Kh3 {[%emt 0:00:17]} Qf2 {[%emt 0:00:36]} 43. h6 {[%emt 0:00:49]} Qe3 {[%emt 0:00:33]} 44. Qc4 {[%emt 0:02:03]} Rxd7 {[%emt 0:00:31]} 45. Qxc7 {[%emt 0:00:30]} Qd2 {[%emt 0:00:29]} 1-0

[Event "25th Abu Dhabi Master 2018"]
[Site "Abu Dhabi"]
[Date "2018.08.07"]
[Round "1"]
[White "Kunte, Abhijit"]
[Black "Sahil, Tickoo"]
[Result "1-0"]
[ECO "D02"]
[WhiteElo "2485"]
[BlackElo "2192"]
[Annotator "RC"]
[PlyCount "91"]
[EventDate "2018.08.05"]
[EventType "swiss"]
[EventCountry "UAE"]
[SourceTitle "playchess.com"]
[Source "ChessBase"]
[SourceQuality "1"]
[TimeControl "5400+30"]

1. Nf3 {[%emt 0:00:20]} d5 {[%emt 0:00:00]} 2. d4 {[%emt 0:01:17]} Nf6 {[%emt 0:00:00]} 3. c4 {[%emt 0:00:09]} e6 {[%emt 0:00:00]} 4. g3 {[%emt 0:00:10]} Bb4+ {[%emt 0:00:00]} 5. Bd2 {[%emt 0:00:10]} Bd6 {[%emt 0:00:01]} 6. Bg2 {[%emt 0:00:25]} O-O {[%emt 0:00:11]} 7. O-O {[%emt 0:01:55]} c6 {[%emt 0:00:10]} 8. b3 {[%emt 0:00:45]} Ne4 {[%emt 0:03:08]} 9. Nc3 {[%emt 0:07:54]} Nxd2 {[%emt 0:03:38]} 10. Qxd2 {[%emt 0:00:48]} f5 {[%emt 0:20:40]} 11. a3 {[%emt 0:03:43]} Nd7 {[%emt 0:01:40]} 12. e3 {[%emt 0:05:07]} Nf6 {[%emt 0:08:55]} 13. Ne5 {[%emt 0:08:23]} Ne4 {[%emt 0:05:32]} 14. Qb2 {[%emt 0:01:01]} Qf6 {[%emt 0:16:04]} 15. Ne2 {[%emt 0:05:05]} Qe7 {[%emt 0:04:51]} 16. Rfc1 {[%emt 0:06:33]} Bd7 {[%emt 0:03:24]} 17. b4 {[%emt 0:04:33]} Rab8 {[%emt 0:16:59]} 18. Nf4 {[%emt 0:12:47]} b5 {[%emt 0:06:24]} 19. c5 {[%emt 0:06:26]} Bc7 {[%emt 0:00:51]} 20. f3 {[%emt 0:02:52]} Ng5 {[%emt 0:01:59]} 21. Nfd3 {[%emt 0:00:45]} Nf7 {[%emt 0:03:53]} 22. a4 {[%emt 0:04:59]} a5 {[%emt 0:00:40]} 23. bxa5 {[%emt 0:02:47]} bxa4 {[%emt 0:00:58]} 24. Qd2 {[%emt 0:00:13]} Rb5 {[%emt 0:01:23]} 25. Rxa4 {[%emt 0:00:09]} Ra8 {[%emt 0:00:19]} 26. Nxf7 {[%emt 0:03:30]} Qxf7 {[%emt 0:00:27]} 27. a6 {[%emt 0:00:13]} Ra7 {[%emt 0:00:35]} 28. Bf1 {[%emt 0:00:29]} Rb8 {[%emt 0:00:27]} 29. f4 {[%emt 0:00:13]} Qe8 {[%emt 0:00:43]} 30. Rca1 {[%emt 0:00:35]} Qc8 {[%emt 0:00:34]} 31. Ne5 {[%emt 0:00:49]} Be8 {[%emt 0:00:14]} 32. Rb4 {[%emt 0:00:10]} Rba8 {[%emt 0:00:37]} 33. Qa2 {[%emt 0:01:47]} Rb8 {[%emt 0:00:02]} 34. Rab1 {[%emt 0:00:55]} Rxb4 {[%emt 0:00:44]} 35. Rxb4 {[%emt 0:00:07]} h6 {[%emt 0:00:30]} 36. Rb6 {[%emt 0:01:17]} Bxe5 {[%emt 0:00:30]} 37. fxe5 {[%emt 0:01:13]} Qd8 {[%emt 0:00:46]} 38. Qb3 {[%emt 0:00:11]} Ra8 {[%emt 0:00:13]} 39. Rb7 {[%emt 0:01:59]} Bd7 {[%emt 0:00:16]} 40. Qb6 {[%emt 0:01:57]} Qg5 {[%emt 0:00:56]} 41. Rb8+ {[%emt 0:00:22]} Kh7 {[%emt 0:00:24]} 42. Kf2 {[%emt 0:00:06]} Rxb8 {[%emt 0:00:43]} 43. Qxb8 {[%emt 0:00:08]} Qh5 {[%emt 0:00:31]} 44. a7 {[%emt 0:00:27]} Qxh2+ {[%emt 0:00:07]} 45. Bg2 {[%emt 0:00:06]} f4 {[%emt 0:00:55]} 46. exf4 {[%emt 0:00:12]} 1-0

[Event "25th Abu Dhabi Master 2018"]
[Site "Abu Dhabi"]
[Date "2018.08.07"]
[Round "1"]
[White "Vignesh, NR."]
[Black "Adnan, Habib Hana"]
[Result "1-0"]
[ECO "B44"]
[WhiteElo "2464"]
[BlackElo "2220"]
[Annotator "RC"]
[PlyCount "58"]
[EventDate "2018.08.05"]
[EventType "swiss"]
[EventCountry "UAE"]
[SourceTitle "playchess.com"]
[Source "ChessBase"]
[SourceQuality "1"]
[TimeControl "5400+30"]

1. e4 {[%emt 0:00:38]} c5 {[%emt 0:00:17]} 2. Nf3 {[%emt 0:00:27]} e6 {[%emt 0:00:13]} 3. d4 {[%emt 0:04:04]} cxd4 {[%emt 0:00:18]} 4. Nxd4 {[%emt 0:00:06]} Nc6 {[%emt 0:00:08]} 5. Nxc6 {[%emt 0:02:19]} bxc6 {[%emt 0:05:55]} 6. Bd3 {[%emt 0:00:07]} d5 {[%emt 0:02:09]} 7. O-O {[%emt 0:00:09]} Nf6 {[%emt 0:00:45]} 8. Qe2 {[%emt 0:00:12]} Bb7 {[%emt 0:03:05]} 9. exd5 {[%emt 0:03:21]} cxd5 {[%emt 0:02:18]} 10. Bb5+ {[%emt 0:04:57]} Nd7 {[%emt 0:02:45]} 11. c4 {[%emt 0:01:08]} Bd6 {[%emt 0:18:54]} 12. cxd5 {[%emt 0:02:43]} O-O {[%emt 0:09:54]} 13. Bc6 {[%emt 0:04:06]} Bxc6 {[%emt 0:02:40]} 14. dxc6 {[%emt 0:00:02]} Ne5 {[%emt 0:01:24]} 15. Rd1 {[%emt 0:00:45]} Nxc6 {[%emt 0:05:43]} 16. Nc3 {[%emt 0:05:16]} Qe7 {[%emt 0:04:56]} 17. Be3 {[%emt 0:06:53]} Rfc8 {[%emt 0:04:36]} 18. Rac1 {[%emt 0:00:55]} Rab8 {[%emt 0:01:30]} 19. Qa6 {[%emt 0:08:20]} Bc7 {[%emt 0:12:56]} 20. Nd5 {[%emt 0:11:45]} exd5 {[%emt 0:01:55]} 21. Rxc6 {[%emt 0:00:54]} Rd8 {[%emt 0:00:33]} 22. Qxa7 {[%emt 0:04:44]} Rb7 {[%emt 0:01:40]} 23. Qc5 {[%emt 0:03:37]} Bd6 {[%emt 0:03:47]} 24. Qc2 {[%emt 0:14:50]} Qe5 {[%emt 0:02:03]} 25. g3 {[%emt 0:00:02]} Rxb2 {[%emt 0:01:02]} 26. Rxd6 {[%emt 0:00:42]} Rdb8 {[%emt 0:03:15]} 27. Qc7 {[%emt 0:00:34]} Qe8 {[%emt 0:00:39]} 28. R6xd5 {[%emt 0:00:12]} Rb1 {[%emt 0:00:32]} 29. Qc2 {[%emt 0:00:25]} R1b2 {[%emt 0:00:18]} 1-0